[Event "*** Titled Tuesday 3|2 Blitz"]
[Site "Chess.com"]
[Date "2016.08.02"]
[Round "9"]
[White "Wolverine_master"]
[Black "FearlessKing64"]
[Result "1/2-1/2"]
[WhiteElo "2020"]
[BlackElo "2071"]
[TimeControl "180+2"]
[EndTime "13:03:51 PDT"]
[Termination "Game drawn by agreement"]

1. e4 {[%clk 0:03:00.9]} 1... c5 {[%clk 0:03:00.1]} 2. Nf3 {[%clk 0:03:01.8]}
2... d6 {[%clk 0:02:56.5]} 3. d4 {[%clk 0:03:02.6]} 3... cxd4 {[%clk 0:02:58.4]}
4. Nxd4 {[%clk 0:03:04.1]} 4... Nf6 {[%clk 0:02:57.8]} 5. Nc3 {[%clk 0:03:05.1]}
5... a6 {[%clk 0:02:59.3]} 6. Bg5 {[%clk 0:03:06.1]} 6... e6 {[%clk 0:03:00.5]}
7. f4 {[%clk 0:03:07.1]} 7... Be7 {[%clk 0:03:01.9]} 8. Qf3 {[%clk 0:03:07.9]}
8... h6 {[%clk 0:03:03.4]} 9. Bxf6 {[%clk 0:03:03.4]} 9... Bxf6 {[%clk
0:03:04.1]} 10. O-O-O {[%clk 0:03:04.5]} 10... Qb6 {[%clk 0:03:05.7]} 11. Qd3
{[%clk 0:01:37.9]} 11... O-O {[%clk 0:02:51.2]} 12. g4 {[%clk 0:01:30.9]} 12...
Bxd4 {[%clk 0:02:36.1]} 13. Qxd4 {[%clk 0:01:31]} 13... Qxd4 {[%clk 0:02:37.6]}
14. Rxd4 {[%clk 0:01:31.6]} 14... Rd8 {[%clk 0:02:39.1]} 15. Bc4 {[%clk
0:01:26.5]} 15... Nc6 {[%clk 0:02:38.7]} 16. Rd2 {[%clk 0:01:26.2]} 16... b5
{[%clk 0:02:40.1]} 17. Bb3 {[%clk 0:01:24.6]} 17... Kf8 {[%clk 0:02:37.6]} 18.
Rhd1 {[%clk 0:01:18]} 18... Ke7 {[%clk 0:02:38.3]} 19. f5 {[%clk 0:01:19.4]}
19... Bb7 {[%clk 0:02:30.2]} 20. Rf1 {[%clk 0:00:50.8]} 20... Na5 {[%clk
0:02:21.8]} 21. Rdf2 {[%clk 0:00:38]} 21... Nxb3+ {[%clk 0:02:17.1]} 22. axb3
{[%clk 0:00:39.9]} 22... Rf8 {[%clk 0:02:12.9]} 23. Kd2 {[%clk 0:00:39.4]} 23...
b4 {[%clk 0:02:11.7]} 24. Na2 {[%clk 0:00:25.5]} 24... a5 {[%clk 0:02:12.5]} 25.
Ke3 {[%clk 0:00:26.1]} 25... Ba6 {[%clk 0:02:04.6]} 26. Rd1 {[%clk 0:00:22.6]}
26... Rac8 {[%clk 0:02:03.7]} 27. Nc1 {[%clk 0:00:22.6]} 27... Rc6 {[%clk
0:01:56.9]} 28. Rdd2 {[%clk 0:00:21.4]} 28... Rfc8 {[%clk 0:01:56.1]} 29. Nd3
{[%clk 0:00:22.8]} 29... Bxd3 {[%clk 0:01:56.2]} 30. Kxd3 {[%clk 0:00:24.7]}
30... Rc5 {[%clk 0:01:52.9]} 31. Rf1 {[%clk 0:00:25]} 31... d5 {[%clk 0:01:50]}
32. e5 {[%clk 0:00:26]} 32... Rd8 {[%clk 0:01:24.6]} 33. Rdf2 {[%clk 0:00:24.9]}
33... d4 {[%clk 0:01:20]} 34. fxe6 {[%clk 0:00:25.7]} 34... Kxe6 {[%clk
0:01:20.6]} 35. Rxf7 {[%clk 0:00:26.4]} 35... Rxe5 {[%clk 0:01:17.6]} 36. Rxg7
{[%clk 0:00:27.6]} 36... Re3+ {[%clk 0:01:18.4]} 37. Kd2 {[%clk 0:00:28.6]}
37... Rh3 {[%clk 0:01:14.6]} 38. Rf2 {[%clk 0:00:22]} 38... Rd5 {[%clk
0:00:47.4]} 39. Rg6+ {[%clk 0:00:22.6]} 39... Ke7 {[%clk 0:00:46.4]} 40. Ra6
{[%clk 0:00:20.2]} 40... d3 {[%clk 0:00:40.9]} 41. cxd3 {[%clk 0:00:11.9]} 41...
Rdxd3+ {[%clk 0:00:27.6]} 42. Kc2 {[%clk 0:00:13.8]} 42... Rd5 {[%clk
0:00:27.1]} 43. Re2+ {[%clk 0:00:13.3]} 43... Kd7 {[%clk 0:00:26.8]} 44. Rf2
{[%clk 0:00:11.5]} 44... Rc5+ {[%clk 0:00:27.3]} 45. Kd2 {[%clk 0:00:09.8]}
45... Rd5+ {[%clk 0:00:28.5]} 46. Kc2 {[%clk 0:00:10.6]} 1/2-1/2

[Event "*** Titled Tuesday 3|2 Blitz"]
[Site "Chess.com"]
[Date "2016.08.02"]
[Round "9"]
[White "Ginger_GM"]
[Black "Evgeny_Levin"]
[Result "0-1"]
[WhiteElo "2400"]
[BlackElo "2654"]
[TimeControl "180+2"]
[EndTime "13:03:58 PDT"]
[Termination "Evgeny_Levin won by resignation"]

1. e4 {[%clk 0:03:01.9]} 1... Nf6 {[%clk 0:02:56.3]} 2. e5 {[%clk 0:03:01.7]}
2... Nd5 {[%clk 0:02:57.4]} 3. Qf3 {[%clk 0:03:01]} 3... c6 {[%clk 0:02:56.1]}
4. Nc3 {[%clk 0:02:59.2]} 4... Nb6 {[%clk 0:02:41.5]} 5. d4 {[%clk 0:02:55]}
5... d5 {[%clk 0:02:42.2]} 6. exd6 {[%clk 0:02:54.1]} 6... exd6 {[%clk
0:02:37.3]} 7. Bd3 {[%clk 0:02:46.3]} 7... Be7 {[%clk 0:02:32.8]} 8. h4 {[%clk
0:02:37.2]} 8... N8d7 {[%clk 0:02:31.1]} 9. Bf4 {[%clk 0:02:28.4]} 9... Nf6
{[%clk 0:02:29.5]} 10. Qe2 {[%clk 0:02:05]} 10... Be6 {[%clk 0:02:25.8]} 11.
O-O-O {[%clk 0:02:02.7]} 11... Qd7 {[%clk 0:02:26.1]} 12. f3 {[%clk 0:01:54.7]}
12... O-O-O {[%clk 0:02:24.5]} 13. g4 {[%clk 0:01:55.5]} 13... h5 {[%clk
0:02:19.8]} 14. g5 {[%clk 0:01:53.5]} 14... Nfd5 {[%clk 0:02:20.9]} 15. Nxd5
{[%clk 0:01:53.1]} 15... Nxd5 {[%clk 0:02:22.8]} 16. Bg3 {[%clk 0:01:53.3]}
16... Nb4 {[%clk 0:02:16.3]} 17. Bc4 {[%clk 0:01:46.6]} 17... Rde8 {[%clk
0:01:34.7]} 18. a3 {[%clk 0:01:36.4]} 18... Nd5 {[%clk 0:01:28.3]} 19. Qd2
{[%clk 0:01:32.8]} 19... Bd8 {[%clk 0:01:22]} 20. Ne2 {[%clk 0:01:31.8]} 20...
Ne3 {[%clk 0:01:03.3]} 21. Bxe6 {[%clk 0:01:22.5]} 21... Qxe6 {[%clk 0:00:47.6]}
22. d5 {[%clk 0:01:15.8]} 22... Qxd5 {[%clk 0:00:35.4]} 23. Qxd5 {[%clk
0:01:09.4]} 23... Nxd5 {[%clk 0:00:37.3]} 24. Nd4 {[%clk 0:01:09.5]} 24... Ne3
{[%clk 0:00:31.6]} 25. Rd3 {[%clk 0:01:05.6]} 25... Bb6 {[%clk 0:00:18.4]} 26.
Bxd6 {[%clk 0:00:49.5]} 26... Bxd4 {[%clk 0:00:18.8]} 27. Rxd4 {[%clk
0:00:50.8]} 27... Nf5 {[%clk 0:00:20.4]} 28. Rd3 {[%clk 0:00:51.8]} 28... Rd8
{[%clk 0:00:16.9]} 29. Be5 {[%clk 0:00:50.5]} 29... Rxd3 {[%clk 0:00:17.1]} 30.
cxd3 {[%clk 0:00:51.8]} 30... Rd8 {[%clk 0:00:17.8]} 31. Kd2 {[%clk 0:00:51.8]}
31... Re8 {[%clk 0:00:16.9]} 32. f4 {[%clk 0:00:51.1]} 32... Kd7 {[%clk
0:00:16.4]} 33. b4 {[%clk 0:00:43.8]} 33... Ke6 {[%clk 0:00:13.3]} 34. Kc3
{[%clk 0:00:42.9]} 34... f6 {[%clk 0:00:12.3]} 35. gxf6 {[%clk 0:00:42.2]} 35...
gxf6 {[%clk 0:00:14.2]} 36. Bd4 {[%clk 0:00:43.2]} 36... Kf7 {[%clk 0:00:11.6]}
37. a4 {[%clk 0:00:32.7]} 37... a6 {[%clk 0:00:12.3]} 38. Rb1 {[%clk 0:00:29.4]}
38... Rg8 {[%clk 0:00:10.9]} 39. b5 {[%clk 0:00:30.3]} 39... cxb5 {[%clk
0:00:12]} 40. axb5 {[%clk 0:00:30.6]} 40... Rc8+ {[%clk 0:00:13]} 41. Kd2 {[%clk
0:00:26.4]} 41... Nxd4 {[%clk 0:00:13.7]} 42. bxa6 {[%clk 0:00:27.1]} 42... bxa6
{[%clk 0:00:15.6]} 43. Rb7+ {[%clk 0:00:25.8]} 43... Kg6 {[%clk 0:00:15.8]} 44.
Ke3 {[%clk 0:00:24.1]} 44... Nf5+ {[%clk 0:00:16.1]} 45. Ke4 {[%clk 0:00:24]}
45... Nd6+ {[%clk 0:00:17]} 0-1

[Event "*** Titled Tuesday 3|2 Blitz"]
[Site "Chess.com"]
[Date "2016.08.02"]
[Round "9"]
[White "profofchess"]
[Black "diokletian"]
[Result "0-1"]
[WhiteElo "2320"]
[BlackElo "2439"]
[TimeControl "180+2"]
[EndTime "13:04:02 PDT"]
[Termination "diokletian won by checkmate"]

1. e4 {[%clk 0:03:01.9]} 1... c5 {[%clk 0:02:57.6]} 2. Nf3 {[%clk 0:03:02.5]}
2... e6 {[%clk 0:02:56.5]} 3. c3 {[%clk 0:03:03.1]} 3... Nf6 {[%clk 0:02:55.6]}
4. Bd3 {[%clk 0:03:02.8]} 4... d5 {[%clk 0:02:49.4]} 5. e5 {[%clk 0:03:03.2]}
5... Nfd7 {[%clk 0:02:49.8]} 6. Bc2 {[%clk 0:03:04.5]} 6... c4 {[%clk 0:02:51]}
7. d4 {[%clk 0:03:05.3]} 7... cxd3 {[%clk 0:02:51.5]} 8. Bxd3 {[%clk 0:03:06.6]}
8... Nc6 {[%clk 0:02:52.6]} 9. Bf4 {[%clk 0:03:07.4]} 9... Be7 {[%clk
0:02:52.1]} 10. h4 {[%clk 0:02:59.2]} 10... Nc5 {[%clk 0:02:51.8]} 11. Bc2
{[%clk 0:02:55.7]} 11... b6 {[%clk 0:02:51.6]} 12. b4 {[%clk 0:02:41.4]} 12...
Ne4 {[%clk 0:02:50.2]} 13. Ba4 {[%clk 0:02:01.1]} 13... Bd7 {[%clk 0:02:46.1]}
14. Bxc6 {[%clk 0:01:57.2]} 14... Bxc6 {[%clk 0:02:45.6]} 15. Nd4 {[%clk
0:01:58.4]} 15... Rc8 {[%clk 0:02:41.4]} 16. g3 {[%clk 0:01:48.5]} 16... Bd7
{[%clk 0:02:33.1]} 17. O-O {[%clk 0:01:33.5]} 17... Nxc3 {[%clk 0:02:16.7]} 18.
Nxc3 {[%clk 0:01:34.2]} 18... Rxc3 {[%clk 0:02:16.7]} 19. Qg4 {[%clk 0:01:34.7]}
19... g6 {[%clk 0:02:12.9]} 20. Rac1 {[%clk 0:01:25.2]} 20... h5 {[%clk
0:02:04.3]} 21. Qe2 {[%clk 0:01:17.1]} 21... Qc8 {[%clk 0:01:52.6]} 22. Nb5
{[%clk 0:00:36.5]} 22... Rc4 {[%clk 0:01:50.9]} 23. Nd6+ {[%clk 0:00:32]} 23...
Bxd6 {[%clk 0:01:50.9]} 24. exd6 {[%clk 0:00:33.9]} 24... f6 {[%clk 0:01:42.1]}
25. Qd3 {[%clk 0:00:22.8]} 25... Kf7 {[%clk 0:01:40.6]} 26. Rfe1 {[%clk
0:00:21.3]} 26... Qc6 {[%clk 0:01:32.1]} 27. Qf3 {[%clk 0:00:18.3]} 27... Kg7
{[%clk 0:01:26.8]} 28. Qd3 {[%clk 0:00:14.1]} 28... Rc8 {[%clk 0:01:24]} 29. a3
{[%clk 0:00:14]} 29... e5 {[%clk 0:01:14.1]} 30. Bd2 {[%clk 0:00:13.8]} 30...
Qxd6 {[%clk 0:01:11.7]} 31. f4 {[%clk 0:00:12.5]} 31... Bf5 {[%clk 0:01:05.2]}
32. Qe3 {[%clk 0:00:13.2]} 32... Rxc1 {[%clk 0:00:59.5]} 33. Rxc1 {[%clk
0:00:12.5]} 33... Rxc1+ {[%clk 0:00:59.6]} 34. Bxc1 {[%clk 0:00:14.4]} 34... d4
{[%clk 0:01:00.5]} 35. fxe5 {[%clk 0:00:11.6]} 35... fxe5 {[%clk 0:00:59.2]} 36.
Qh6+ {[%clk 0:00:12.5]} 36... Kf7 {[%clk 0:00:59.1]} 37. Bg5 {[%clk 0:00:11.4]}
37... e4 {[%clk 0:00:46.4]} 38. Qh7+ {[%clk 0:00:11.3]} 38... Ke6 {[%clk
0:00:47]} 39. Qg8+ {[%clk 0:00:12.4]} 39... Kd7 {[%clk 0:00:47.7]} 40. Qd8+
{[%clk 0:00:11.2]} 40... Kc6 {[%clk 0:00:46.5]} 41. Qa8+ {[%clk 0:00:10.5]}
41... Kb5 {[%clk 0:00:43.3]} 42. Bf4 {[%clk 0:00:11.3]} 42... Qd7 {[%clk
0:00:40]} 43. Qb8 {[%clk 0:00:07.8]} 43... e3 {[%clk 0:00:36.3]} 44. Qe5+ {[%clk
0:00:08.4]} 44... Ka4 {[%clk 0:00:36.9]} 45. Bg5 {[%clk 0:00:06.8]} 45... Bh3
{[%clk 0:00:32.8]} 46. Bf6 {[%clk 0:00:05.4]} 46... Qc6 {[%clk 0:00:30.5]} 47.
Qxd4 {[%clk 0:00:02.6]} 47... Qg2# {[%clk 0:00:30.3]} 0-1

[Event "*** Titled Tuesday 3|2 Blitz"]
[Site "Chess.com"]
[Date "2016.08.02"]
[Round "9"]
[White "igorkovalenko"]
[Black "DeviatkinAndrey"]
[Result "0-1"]
[WhiteElo "2557"]
[BlackElo "2593"]
[TimeControl "180+2"]
[EndTime "13:04:16 PDT"]
[Termination "DeviatkinAndrey won by resignation"]

1. d4 {[%clk 0:03:01.9]} 1... d5 {[%clk 0:03:01]} 2. Nf3 {[%clk 0:03:02.7]} 2...
Nf6 {[%clk 0:03:01.9]} 3. c4 {[%clk 0:03:03.8]} 3... c6 {[%clk 0:03:03.1]} 4.
Nc3 {[%clk 0:03:04.8]} 4... dxc4 {[%clk 0:03:03.8]} 5. a4 {[%clk 0:03:05.7]}
5... Bf5 {[%clk 0:03:05.1]} 6. Ne5 {[%clk 0:03:06.8]} 6... e6 {[%clk 0:03:02.4]}
7. f3 {[%clk 0:03:07.8]} 7... Bb4 {[%clk 0:03:03.2]} 8. Nxc4 {[%clk 0:03:05.7]}
8... h6 {[%clk 0:02:31.2]} 9. Kf2 {[%clk 0:03:00.6]} 9... Nbd7 {[%clk
0:02:26.6]} 10. e4 {[%clk 0:02:58.6]} 10... Bh7 {[%clk 0:02:23.3]} 11. Be3
{[%clk 0:02:59.4]} 11... O-O {[%clk 0:02:21]} 12. Qb3 {[%clk 0:02:57.1]} 12...
a5 {[%clk 0:02:21.2]} 13. Be2 {[%clk 0:02:57.5]} 13... Qc7 {[%clk 0:02:19.5]}
14. Rac1 {[%clk 0:02:56.9]} 14... e5 {[%clk 0:01:59.9]} 15. dxe5 {[%clk
0:02:16.9]} 15... Nxe5 {[%clk 0:02:00.6]} 16. g3 {[%clk 0:02:02.4]} 16... Nxc4
{[%clk 0:01:11.2]} 17. Qxc4 {[%clk 0:01:57.4]} 17... Qe7 {[%clk 0:01:01.7]} 18.
Rhd1 {[%clk 0:01:53.7]} 18... Rfd8 {[%clk 0:01:01.4]} 19. Na2 {[%clk 0:01:50.8]}
19... Bd6 {[%clk 0:00:56.7]} 20. Rd2 {[%clk 0:01:44.5]} 20... Bxe4 {[%clk
0:00:55.1]} 21. fxe4 {[%clk 0:01:43.1]} 21... Nxe4+ {[%clk 0:00:54.6]} 22. Kf3
{[%clk 0:01:36.8]} 22... Nxd2+ {[%clk 0:00:50.6]} 23. Bxd2 {[%clk 0:01:38.1]}
23... Bxg3 {[%clk 0:00:46.9]} 24. hxg3 {[%clk 0:01:35.3]} 24... Rxd2 {[%clk
0:00:46.9]} 25. Nc3 {[%clk 0:01:36.6]} 25... Re8 {[%clk 0:00:47]} 26. Re1 {[%clk
0:01:28.3]} 26... Qe3+ {[%clk 0:00:40.9]} 27. Kg2 {[%clk 0:01:29.7]} 27... Rxb2
{[%clk 0:00:38.2]} 28. Kh3 {[%clk 0:01:13.6]} 28... Qe6+ {[%clk 0:00:38.5]} 29.
Qxe6 {[%clk 0:01:09.7]} 29... Rxe6 {[%clk 0:00:40.1]} 30. Kg4 {[%clk 0:01:08.5]}
30... Re3 {[%clk 0:00:41.3]} 31. Rc1 {[%clk 0:01:06]} 31... Rbxe2 {[%clk
0:00:39.5]} 32. Nxe2 {[%clk 0:01:07.9]} 32... Rxe2 {[%clk 0:00:40.9]} 33. Rb1
{[%clk 0:01:09.5]} 33... Re4+ {[%clk 0:00:41.6]} 34. Kf5 {[%clk 0:01:11]} 34...
Rxa4 {[%clk 0:00:39.7]} 35. Rxb7 {[%clk 0:01:11.8]} 35... Ra1 {[%clk 0:00:37]}
36. Rc7 {[%clk 0:01:10.7]} 36... a4 {[%clk 0:00:37.3]} 37. Rxc6 {[%clk
0:01:12.1]} 37... a3 {[%clk 0:00:38.8]} 38. Ra6 {[%clk 0:01:13.3]} 38... g6+
{[%clk 0:00:35.7]} 39. Kg4 {[%clk 0:01:13.8]} 39... Kg7 {[%clk 0:00:36.2]} 40.
Kh3 {[%clk 0:01:15]} 40... h5 {[%clk 0:00:33.8]} 41. Kg2 {[%clk 0:01:16]} 41...
g5 {[%clk 0:00:34.4]} 42. Ra5 {[%clk 0:01:16.3]} 42... f6 {[%clk 0:00:35.6]} 43.
Ra7+ {[%clk 0:01:15.1]} 43... Kg6 {[%clk 0:00:36.9]} 44. Ra4 {[%clk 0:01:17]}
44... Ra2+ {[%clk 0:00:35.9]} 45. Kf3 {[%clk 0:01:16.1]} 45... Kf5 {[%clk
0:00:34.8]} 46. Ra5+ {[%clk 0:01:16.9]} 46... Ke6 {[%clk 0:00:35.2]} 47. Ra6+
{[%clk 0:01:18.8]} 47... Ke5 {[%clk 0:00:36.3]} 48. Ra4 {[%clk 0:01:12.7]} 48...
Ra1 {[%clk 0:00:34.1]} 49. Kg2 {[%clk 0:01:13.1]} 49... h4 {[%clk 0:00:28.9]}
50. gxh4 {[%clk 0:01:14]} 50... gxh4 {[%clk 0:00:29.8]} 51. Rxh4 {[%clk
0:01:15.6]} 51... Rb1 {[%clk 0:00:30.5]} 52. Ra4 {[%clk 0:01:17.1]} 52... Rb3
{[%clk 0:00:31.4]} 53. Kf2 {[%clk 0:01:18.4]} 53... f5 {[%clk 0:00:31.7]} 54.
Ke2 {[%clk 0:01:19.8]} 54... f4 {[%clk 0:00:30.1]} 55. Kd2 {[%clk 0:01:16.1]}
55... Kf5 {[%clk 0:00:30.5]} 56. Ke2 {[%clk 0:01:11.6]} 56... Kg4 {[%clk
0:00:30.8]} 57. Ra8 {[%clk 0:01:09.1]} 57... Rb2+ {[%clk 0:00:30.6]} 58. Kd3
{[%clk 0:01:09.9]} 58... a2 {[%clk 0:00:30.4]} 59. Ke4 {[%clk 0:01:11]} 59...
Re2+ {[%clk 0:00:31.3]} 60. Kd3 {[%clk 0:01:12.4]} 60... f3 {[%clk 0:00:32.9]}
61. Rg8+ {[%clk 0:01:13]} 61... Kf4 {[%clk 0:00:33.7]} 62. Ra8 {[%clk
0:01:14.9]} 62... Kg3 {[%clk 0:00:34.3]} 63. Rg8+ {[%clk 0:01:15.7]} 63... Kf2
{[%clk 0:00:35.5]} 64. Ra8 {[%clk 0:01:17.6]} 64... Kf1 {[%clk 0:00:36.5]} 0-1

[Event "*** Titled Tuesday 3|2 Blitz"]
[Site "Chess.com"]
[Date "2016.08.02"]
[Round "9"]
[White "fastestmindalive"]
[Black "TyIerDurden"]
[Result "1-0"]
[WhiteElo "2439"]
[BlackElo "2494"]
[TimeControl "180+2"]
[EndTime "13:04:19 PDT"]
[Termination "fastestmindalive won by resignation"]

1. e4 {[%clk 0:03:01.9]} 1... e6 {[%clk 0:02:58.8]} 2. b3 {[%clk 0:02:55.1]}
2... d5 {[%clk 0:03:00.7]} 3. Bb2 {[%clk 0:02:55.9]} 3... dxe4 {[%clk
0:03:01.3]} 4. Nc3 {[%clk 0:02:56.9]} 4... Nf6 {[%clk 0:03:02]} 5. Qe2 {[%clk
0:02:58.1]} 5... Bd7 {[%clk 0:02:59.4]} 6. Nxe4 {[%clk 0:02:58.7]} 6... Be7
{[%clk 0:02:59.2]} 7. O-O-O {[%clk 0:02:44.5]} 7... Nxe4 {[%clk 0:02:55.6]} 8.
Qxe4 {[%clk 0:02:44.7]} 8... Bc6 {[%clk 0:02:56.7]} 9. Qg4 {[%clk 0:02:42.2]}
9... Bf6 {[%clk 0:02:55.8]} 10. d4 {[%clk 0:02:42.4]} 10... a5 {[%clk
0:02:55.3]} 11. a4 {[%clk 0:02:42.6]} 11... Nd7 {[%clk 0:02:46.2]} 12. Nf3
{[%clk 0:02:43.3]} 12... O-O {[%clk 0:02:37.5]} 13. Bd3 {[%clk 0:02:43.5]} 13...
g6 {[%clk 0:02:36.8]} 14. h4 {[%clk 0:02:42.3]} 14... Bg7 {[%clk 0:02:36.4]} 15.
h5 {[%clk 0:02:21.6]} 15... Nf6 {[%clk 0:02:26.8]} 16. Qh3 {[%clk 0:02:21.6]}
16... Bxf3 {[%clk 0:02:22]} 17. Qxf3 {[%clk 0:02:15.4]} 17... Qd5 {[%clk
0:02:23]} 18. Qe3 {[%clk 0:01:52.6]} 18... Ng4 {[%clk 0:02:10.6]} 19. Qe2 {[%clk
0:01:46.4]} 19... Nf6 {[%clk 0:02:09]} 20. hxg6 {[%clk 0:01:43.1]} 20... hxg6
{[%clk 0:02:10.9]} 21. Kb1 {[%clk 0:01:39.4]} 21... c6 {[%clk 0:02:07.7]} 22. f3
{[%clk 0:01:40.5]} 22... b5 {[%clk 0:02:02.9]} 23. axb5 {[%clk 0:01:38.5]} 23...
a4 {[%clk 0:02:03.4]} 24. Bc4 {[%clk 0:01:38]} 24... Qd8 {[%clk 0:02:01.3]} 25.
bxc6 {[%clk 0:01:37.1]} 25... Qb6 {[%clk 0:02:01.6]} 26. Rh4 {[%clk 0:01:33.9]}
26... axb3 {[%clk 0:01:57]} 27. Bxb3 {[%clk 0:01:33.8]} 27... Qxc6 {[%clk
0:01:54.6]} 28. Rdh1 {[%clk 0:01:33.8]} 28... Nd5 {[%clk 0:01:53]} 29. c4 {[%clk
0:01:30]} 29... Nf6 {[%clk 0:01:36.2]} 30. d5 {[%clk 0:01:20.9]} 30... Qb7
{[%clk 0:01:24.8]} 31. Qe5 {[%clk 0:01:15.5]} 31... Qe7 {[%clk 0:01:01.4]} 32.
d6 {[%clk 0:01:08.7]} 32... Qd8 {[%clk 0:00:59.3]} 33. c5 {[%clk 0:00:54.9]}
33... Rb8 {[%clk 0:00:57.9]} 34. Kc2 {[%clk 0:00:55.6]} 34... Rb5 {[%clk
0:00:55.8]} 35. g4 {[%clk 0:00:52.8]} 35... Rxc5+ {[%clk 0:00:51.4]} 36. Qxc5
{[%clk 0:00:51.9]} 36... Qc8 {[%clk 0:00:52.2]} 37. Qxc8 {[%clk 0:00:51.1]}
37... Rxc8+ {[%clk 0:00:53.1]} 38. Kb1 {[%clk 0:00:52.3]} 38... Rb8 {[%clk
0:00:51.6]} 39. Kc2 {[%clk 0:00:45]} 39... Rc8+ {[%clk 0:00:49.7]} 40. Kb1
{[%clk 0:00:43.7]} 40... Rb8 {[%clk 0:00:49]} 41. Rh8+ {[%clk 0:00:32.2]} 41...
Bxh8 {[%clk 0:00:44.7]} 42. Rxh8+ {[%clk 0:00:34.1]} 42... Kxh8 {[%clk
0:00:42.3]} 43. Bxf6+ {[%clk 0:00:35]} 43... Kh7 {[%clk 0:00:44.2]} 44. Kb2
{[%clk 0:00:35.8]} 44... Rb7 {[%clk 0:00:42.1]} 45. g5 {[%clk 0:00:36.2]} 45...
Rd7 {[%clk 0:00:40]} 46. Be7 {[%clk 0:00:35.3]} 46... Rb7 {[%clk 0:00:41]} 47.
Kc3 {[%clk 0:00:35.9]} 47... Ra7 {[%clk 0:00:39.8]} 48. Bc4 {[%clk 0:00:33.9]}
48... Rb7 {[%clk 0:00:39.1]} 49. Kd4 {[%clk 0:00:34.9]} 49... Kg7 {[%clk
0:00:38.5]} 50. Bf6+ {[%clk 0:00:35.1]} 50... Kf8 {[%clk 0:00:39.2]} 51. Kc5
{[%clk 0:00:35.8]} 51... Ke8 {[%clk 0:00:35.8]} 52. Bb5+ {[%clk 0:00:36]} 52...
Kf8 {[%clk 0:00:36.2]} 53. d7 {[%clk 0:00:36.3]} 1-0

[Event "*** Titled Tuesday 3|2 Blitz"]
[Site "Chess.com"]
[Date "2016.08.02"]
[Round "9"]
[White "RamonManon0g"]
[Black "stepanosinovsky"]
[Result "0-1"]
[WhiteElo "2229"]
[BlackElo "2226"]
[TimeControl "180+2"]
[EndTime "13:04:31 PDT"]
[Termination "stepanosinovsky won by resignation"]

1. d4 {[%clk 0:03:01.9]} 1... Nf6 {[%clk 0:03:00.3]} 2. c4 {[%clk 0:03:02.6]}
2... g6 {[%clk 0:03:01.8]} 3. Nc3 {[%clk 0:03:03.1]} 3... Bg7 {[%clk 0:03:03.7]}
4. e4 {[%clk 0:03:04.5]} 4... O-O {[%clk 0:03:05.4]} 5. Nf3 {[%clk 0:03:06.1]}
5... d6 {[%clk 0:03:05.9]} 6. h3 {[%clk 0:03:07.7]} 6... Nbd7 {[%clk 0:03:05.2]}
7. e5 {[%clk 0:03:07.7]} 7... Ne8 {[%clk 0:03:01.7]} 8. Bg5 {[%clk 0:03:08.1]}
8... f6 {[%clk 0:02:56.7]} 9. exf6 {[%clk 0:03:06.5]} 9... exf6 {[%clk
0:02:55.4]} 10. Be3 {[%clk 0:03:06.5]} 10... f5 {[%clk 0:02:39.2]} 11. Qd2
{[%clk 0:03:07.3]} 11... Nef6 {[%clk 0:02:29.1]} 12. Bd3 {[%clk 0:03:07.3]}
12... c6 {[%clk 0:02:26.2]} 13. O-O {[%clk 0:03:02.9]} 13... d5 {[%clk
0:02:07.8]} 14. cxd5 {[%clk 0:03:03.4]} 14... cxd5 {[%clk 0:02:05.1]} 15. Bg5
{[%clk 0:03:04.4]} 15... Qb6 {[%clk 0:01:34]} 16. Rfe1 {[%clk 0:03:00.4]} 16...
Ne4 {[%clk 0:01:16.7]} 17. Bxe4 {[%clk 0:02:58.4]} 17... dxe4 {[%clk 0:01:14.3]}
18. Ne5 {[%clk 0:02:54.5]} 18... Nxe5 {[%clk 0:01:05.1]} 19. dxe5 {[%clk
0:02:56.4]} 19... Bxe5 {[%clk 0:00:56.9]} 20. Rad1 {[%clk 0:02:06.3]} 20... Be6
{[%clk 0:00:54]} 21. Nd5 {[%clk 0:02:01.8]} 21... Qxb2 {[%clk 0:00:19.8]} 22.
Qxb2 {[%clk 0:01:47.8]} 22... Bxb2 {[%clk 0:00:20.3]} 23. Nc7 {[%clk 0:01:48.5]}
23... Bc4 {[%clk 0:00:18]} 24. Nxa8 {[%clk 0:01:48.9]} 24... Rxa8 {[%clk
0:00:18.8]} 25. Rd7 {[%clk 0:01:48.1]} 25... b5 {[%clk 0:00:19.1]} 26. Red1
{[%clk 0:01:43]} 26... Bd3 {[%clk 0:00:19.7]} 27. f3 {[%clk 0:01:26.7]} 27... b4
{[%clk 0:00:19.3]} 28. fxe4 {[%clk 0:01:25.4]} 28... fxe4 {[%clk 0:00:21.2]} 29.
Be3 {[%clk 0:01:22.1]} 29... a5 {[%clk 0:00:21.1]} 30. Ra7 {[%clk 0:01:00.4]}
30... Rxa7 {[%clk 0:00:20.8]} 31. Bxa7 {[%clk 0:01:02.3]} 31... a4 {[%clk
0:00:21.4]} 32. Bc5 {[%clk 0:01:00.1]} 32... b3 {[%clk 0:00:21.7]} 33. axb3
{[%clk 0:01:02]} 33... axb3 {[%clk 0:00:23.2]} 34. Kf2 {[%clk 0:01:02.9]} 34...
Bc3 {[%clk 0:00:23.6]} 35. Ba3 {[%clk 0:01:01.6]} 35... b2 {[%clk 0:00:24.6]}
36. Bxb2 {[%clk 0:01:01.6]} 36... Bxb2 {[%clk 0:00:26.5]} 37. Ke3 {[%clk
0:01:03.4]} 37... Bf6 {[%clk 0:00:24.2]} 38. g3 {[%clk 0:00:56.7]} 38... Bg5+
{[%clk 0:00:24.5]} 39. Kd4 {[%clk 0:00:57.9]} 39... Bf6+ {[%clk 0:00:25.7]} 40.
Ke3 {[%clk 0:00:56.7]} 40... Be7 {[%clk 0:00:26.7]} 41. Ra1 {[%clk 0:00:53.7]}
41... Bc5+ {[%clk 0:00:26.2]} 42. Kf4 {[%clk 0:00:54.3]} 42... Bd6+ {[%clk
0:00:26.2]} 43. Ke3 {[%clk 0:00:54.8]} 43... Bxg3 {[%clk 0:00:26.3]} 44. Ra7
{[%clk 0:00:52.6]} 44... Bh4 {[%clk 0:00:24.9]} 45. Ra5 {[%clk 0:00:52.3]} 45...
Bf6 {[%clk 0:00:24.7]} 46. Kf4 {[%clk 0:00:52.4]} 46... Be7 {[%clk 0:00:22.6]}
47. Ra8+ {[%clk 0:00:51.8]} 47... Bf8 {[%clk 0:00:23.4]} 48. Ra7 {[%clk
0:00:53.7]} 48... Bh6+ {[%clk 0:00:23.7]} 49. Ke5 {[%clk 0:00:54.6]} 49... e3
{[%clk 0:00:23.4]} 50. Kf6 {[%clk 0:00:54]} 50... e2 {[%clk 0:00:21.5]} 51. Ra8+
{[%clk 0:00:49.6]} 51... Bf8 {[%clk 0:00:22.6]} 52. Re8 {[%clk 0:00:51.5]} 52...
Bc4 {[%clk 0:00:23]} 53. Re4 {[%clk 0:00:45.9]} 53... Bg7+ {[%clk 0:00:23.2]}
54. Kg5 {[%clk 0:00:47]} 54... Bb5 {[%clk 0:00:23.4]} 55. Kf4 {[%clk 0:00:46]}
55... Bc3 {[%clk 0:00:23.3]} 56. Kg5 {[%clk 0:00:40.2]} 56... e1=Q {[%clk
0:00:22.1]} 57. Rxe1 {[%clk 0:00:41.4]} 57... Bxe1 {[%clk 0:00:23.1]} 0-1